fUSD/lending_fUSD_20250530
["ID","MTS","AMOUNT","RATE_DAILY","PERIOD"]
[363155087,1748603452102,-151.0,0.00021917,2]
[363155090,1748603452111,-151.0,0.00021917,2]
[363155092,1748603452121,-151.0,0.00021917,2]
[363155094,1748603452130,-160.0,0.00021917,2]
[363155096,1748603452140,-2148.39,0.00021917,2]
[363155098,1748603452150,-420.0,0.00021917,2]
[363155100,1748603452159,-615.78,0.00021917,2]
[363155102,1748603452168,-500.0,0.00021917,2]
[363155104,1748603452178,-3462.94,0.00021917,2]
[363155106,1748603452188,-420.0,0.00021917,2]
[363155108,1748603452197,-420.0,0.00021917,2]
[363155110,1748603452207,-420.0,0.00021917,2]
[363155113,1748603452225,-1016.03,0.00021917,2]
[363155115,1748603452237,-151.0,0.00021917,2]
[363155117,1748603452247,-151.0,0.00021917,2]
[363155119,1748603452258,-420.0,0.00021917,2]
[363155121,1748603452268,-155.852723,0.00021917,2]
[363155123,1748603452279,-1990.41,0.00021917,2]
[363155125,1748603452290,-420.0,0.00021917,2]
[363155128,1748603452300,-152.958323,0.00021917,2]
[363155130,1748603452311,-420.0,0.00021917,2]
[363155132,1748603452321,-500.0,0.00021917,2]
[363155134,1748603452330,-1921.04,0.00021917,2]
[363155136,1748603452341,-7166.1,0.00021917,2]
[363155138,1748603452352,-500.0,0.00021917,2]
[363155140,1748603452363,-479.88,0.00021917,2]
[363155142,1748603452374,-1716.48,0.00021917,2]
[363155144,1748603452384,-944.27,0.00021917,2]
[363155146,1748603452394,-603.35,0.00021917,2]
[363155148,1748603452404,-420.0,0.00021917,2]
[363155150,1748603452415,-3268.06,0.00021917,2]
[363155152,1748603452425,-10989.02,0.00021917,2]
[363155154,1748603452436,-8189.5,0.00021917,2]
[363155156,1748603452452,-420.0,0.00021917,2]
[363155157,1748603452462,-841.07,0.00021917,2]
[363155162,1748603452587,-947.39,0.00021917,2]
[363155164,1748603452598,-3203.02,0.00021917,2]
[363155166,1748603452607,-810.32,0.00021917,2]
[363155168,1748603452616,-423.35334085,0.00021917,2]
[363155169,1748603452626,-500.0,0.00021917,2]
[363155171,1748603452635,-500.0,0.00021917,2]
[363155173,1748603452645,-298.87698516,0.00021917,2]
[363155175,1748603452654,-152.056065,0.00021917,2]
[363155177,1748603452664,-500.0,0.00021917,2]
[363155179,1748603452674,-420.0,0.00021917,2]
[363155181,1748603452683,-420.0,0.00021917,2]
[363155183,1748603452694,-1987.68,0.00021917,2]
[363155186,1748603452705,-1183.56,0.00021917,2]
[363155188,1748603452714,-1530.96,0.00021917,2]
[363155190,1748603452724,-1008.17,0.00021917,2]
[363155192,1748603452733,-420.0,0.00021917,2]
[363155194,1748603452743,-420.0,0.00021917,2]
[363155196,1748603452752,-1493.81,0.00021917,2]
[363155198,1748603452761,-420.0,0.00021917,2]
[363155200,1748603452771,-2934.36,0.00021917,2]
[363155202,1748603452781,-420.0,0.00021917,2]
[363155204,1748603452791,-420.0,0.00021917,2]
[363155206,1748603452800,-439.25,0.00021917,2]
[363155208,1748603452809,-500.0,0.00021917,2]
[363155210,1748603452819,-1359.13,0.00021917,2]
[363155212,1748603452828,-420.0,0.00021917,2]
[363155214,1748603452837,-9928.4,0.00021917,2]
[363155216,1748603452849,-500.0,0.00021917,2]
[363155218,1748603452858,-500.0,0.00021917,2]
[363155220,1748603452867,-420.0,0.00021917,2]
[363155222,1748603452876,-420.0,0.00021917,2]
[363155224,1748603452886,-985.73,0.00021917,2]
[363155226,1748603452896,-713.78,0.00021917,2]
[363155227,1748603452905,-942.53,0.00021917,2]
[363155229,1748603452914,-5666.33,0.00021917,2]
[363155231,1748603452924,-151.0,0.00021917,2]
[363155233,1748603452935,-151.0,0.00021917,2]
[363155235,1748603452945,-151.0,0.00021917,2]
[363155237,1748603452955,-151.0,0.00021917,2]
[363155239,1748603452964,-689.07,0.00021917,2]
[363155241,1748603452974,-280.66627612,0.00021917,2]
[363155243,1748603452984,-420.0,0.00021917,2]
[363155245,1748603452993,-4069.87,0.00021917,2]
[363155247,1748603453002,-160.0,0.00021917,2]
[363155249,1748603453012,-13426.33,0.00021917,2]
[363155252,1748603453022,-3876.06,0.00021917,2]
[363155254,1748603453031,-420.0,0.00021917,2]
[363155256,1748603453040,-420.0,0.00021917,2]
[363155258,1748603453049,-201.739981,0.00021917,2]
[363155260,1748603453059,-201.739981,0.00021917,2]
[363155262,1748603453068,-201.739981,0.00021917,2]
[363155264,1748603453077,-4577.96,0.00021917,2]
[363155266,1748603453088,-420.0,0.00021917,2]
[363155268,1748603453098,-420.0,0.00021917,2]
[363155270,1748603453107,-420.0,0.00021917,2]
[363155271,1748603453117,-29936.03,0.00021917,2]
[363155273,1748603453127,-420.0,0.00021917,2]
[363155275,1748603453137,-201.739981,0.00021917,2]
[363155277,1748603453147,-201.739981,0.00021917,2]
[363155279,1748603453156,-500.0,0.00021917,2]
[363155281,1748603453166,-201.739981,0.00021917,2]
[363155283,1748603453175,-960.84,0.00021917,2]
[363155285,1748603453184,-504.06406393,0.00021917,2]
[363155287,1748603453193,-513.97,0.00021917,2]
[363155289,1748603453202,-1169.89,0.00021917,2]
[363155291,1748603453212,-151.0,0.00021917,2]
[363155293,1748603453221,-151.0,0.00021917,2]
[363155295,1748603453230,-151.0,0.00021917,2]
[363155297,1748603453239,-151.0,0.00021917,2]
[363155299,1748603453249,-468.12,0.00021917,2]
[363155301,1748603453258,-151.0,0.00021917,2]
[363155303,1748603453267,-420.0,0.00021917,2]
[363155305,1748603453276,-2434.21,0.00021917,2]
[363155307,1748603453285,-1429.93,0.00021917,2]
[363155308,1748603453294,-1652.74,0.00021917,2]
[363155311,1748603453304,-151.0,0.00021917,2]
[363155313,1748603453313,-151.0,0.00021917,2]
[363155315,1748603453322,-9747.52,0.00021917,2]
[363155317,1748603453331,-151.0,0.00021917,2]
[363155319,1748603453340,-215.345119,0.00021917,2]
[363155320,1748603453350,-3215.99,0.00021917,2]
[363155323,1748603453360,-1370.7,0.00021917,2]
[363155325,1748603453369,-2161.74,0.00021917,2]
[363155327,1748603453378,-546.74,0.00021917,2]
[363155329,1748603453387,-498.29,0.00021917,2]
[363155331,1748603453397,-3356.55,0.00021917,2]
[363155333,1748603453406,-702.62,0.00021917,2]
[363155335,1748603453416,-1894.7,0.00021917,2]
[363155337,1748603453425,-828.47,0.00021917,2]
[363155339,1748603453435,-518.21428543,0.00021917,2]
[363155341,1748603453448,-500.0,0.00021917,2]
[363155342,1748603453457,-4079.37,0.00021917,2]
[363155344,1748603453467,-420.0,0.00021917,2]
[363155346,1748603453476,-7449.11,0.00021917,2]
[363155348,1748603453486,-1493.87,0.00021917,2]
[363155350,1748603453495,-1141.31,0.00021917,2]
[363155352,1748603453505,-839.19,0.00021917,2]
[363155354,1748603453514,-705.65,0.00021917,2]
[363155356,1748603453524,-760.43,0.00021917,2]
[363155359,1748603453534,-667.28,0.00021917,2]
[363155360,1748603453543,-500.0,0.00021917,2]
[363155362,1748603453552,-564.51,0.00021917,2]
[363155364,1748603453561,-731.08,0.00021917,2]
[363155366,1748603453571,-888.03,0.00021917,2]
[363155368,1748603453580,-1355.07,0.00021917,2]
[363155370,1748603453589,-1172.74,0.00021917,2]
[363155372,1748603453601,-1902.68,0.00021917,2]
[363155374,1748603453611,-420.0,0.00021917,2]
[363155376,1748603453620,-1006.17,0.00021917,2]
[363155378,1748603453629,-420.0,0.00021917,2]
[363155380,1748603453638,-1353.89,0.00021917,2]
[363155382,1748603453647,-952.02,0.00021917,2]
[363155384,1748603453657,-151.0,0.00021917,2]
[363155386,1748603453666,-7019.01,0.00021917,2]
[363155388,1748603453675,-1570.55,0.00021917,2]
[363155390,1748603453684,-1159.63,0.00021917,2]
[363155392,1748603453694,-424.51,0.00021917,2]
[363155394,1748603453703,-4338.08,0.00021917,2]
[363155396,1748603453712,-1433.54,0.00021917,2]
[363155398,1748603453721,-2691.23,0.00021917,2]
[363155400,1748603453730,-2353.99,0.00021917,2]
[363155402,1748603453739,-19802.22,0.00021917,2]
[363155405,1748603453749,-1642.92,0.00021917,2]
[363155406,1748603453758,-457.62,0.00021917,2]
[363155408,1748603453768,-153.573586,0.00021917,2]
[363155410,1748603453777,-151.0,0.00021917,2]
[363155412,1748603453786,-170.94847076,0.00021917,2]
[363155414,1748603453795,-420.0,0.00021917,2]
[363155417,1748603453805,-4073.35,0.00021917,2]
[363155419,1748603453816,-1328.79,0.00021917,2]
[363155420,1748603453826,-653.18,0.00021917,2]
[363155422,1748603453835,-420.0,0.00021917,2]
[363155424,1748603453846,-500.0,0.00021917,2]
[363155426,1748603453856,-819.94,0.00021917,2]
[363155428,1748603453865,-715.82,0.00021917,2]
[363155430,1748603453875,-525.71,0.00021917,2]
[363155432,1748603453885,-499.18,0.00021917,2]
[363155434,1748603453894,-420.0,0.00021917,2]
[363155436,1748603453904,-540.20194575,0.00021917,2]
[363155438,1748603453913,-992.14,0.00021917,2]
[363155440,1748603453922,-151.0,0.00021917,2]
[363155442,1748603453932,-469.26,0.00021917,2]
[363155444,1748603453941,-2442.02,0.00021917,2]
[363155446,1748603453951,-151.0,0.00021917,2]
[363155448,1748603453960,-998.78,0.00021917,2]
[363155450,1748603453969,-253.960596,0.00021917,2]
[363155452,1748603453978,-420.0,0.00021917,2]
[363155454,1748603453987,-420.0,0.00021917,2]
[363155456,1748603453997,-420.0,0.00021917,2]
[363155458,1748603454006,-502.76986875,0.00021917,2]
[363155460,1748603454015,-1150.78,0.00021917,2]
[363155462,1748603454024,-1274.3,0.00021917,2]
[363155464,1748603454034,-3065.73,0.00021917,2]
[363155466,1748603454043,-495.43,0.00021917,2]
[363155468,1748603454052,-1434.63,0.00021917,2]
[363155470,1748603454062,-420.0,0.00021917,2]
[363155472,1748603454071,-1716.82,0.00021917,2]
[363155474,1748603454081,-151.0,0.00021917,2]
[363155476,1748603454090,-178.916708,0.00021917,2]
[363155478,1748603454102,-667.98,0.00021917,2]
[363155480,1748603454111,-3629.94,0.00021917,2]
[363155482,1748603454120,-500.0,0.00021917,2]
[363155484,1748603454129,-715.33,0.00021917,2]
[363155486,1748603454139,-628.81,0.00021917,2]
[363155488,1748603454148,-420.0,0.00021917,2]
[363155490,1748603454157,-1114.73,0.00021917,2]
[363155492,1748603454168,-488.40666228,0.00021917,2]
[363155495,1748603454177,-2044.44,0.00021917,2]
[363155497,1748603454187,-1458.94,0.00021917,2]
[363155499,1748603454197,-420.0,0.00021917,2]
[363155501,1748603454206,-420.0,0.00021917,2]
[363155503,1748603454216,-500.0,0.00021917,2]
[363155505,1748603454226,-5549.54,0.00021917,2]
[363155507,1748603454236,-970.52,0.00021917,2]
[363155509,1748603454245,-420.0,0.00021917,2]
[363155511,1748603454256,-614.66,0.00021917,2]
[363155513,1748603454265,-1831.35,0.00021917,2]
[363155515,1748603454275,-742.78,0.00021917,2]
[363155517,1748603454285,-420.0,0.00021917,2]
[363155519,1748603454294,-989.09,0.00021917,2]
[363155521,1748603454303,-2599.22,0.00021917,2]
[363155523,1748603454312,-420.0,0.00021917,2]
[363155525,1748603454322,-420.0,0.00021917,2]
[363155527,1748603454331,-1301.1,0.00021917,2]
[363155529,1748603454341,-558.99489074,0.00021917,2]
[363155531,1748603454351,-701.19,0.00021917,2]
[363155533,1748603454361,-420.0,0.00021917,2]
[363155535,1748603454370,-420.0,0.00021917,2]
[363155537,1748603454380,-1919.58,0.00021917,2]
[363155539,1748603454389,-3890.11,0.00021917,2]
[363155541,1748603454399,-420.0,0.00021917,2]
[363155543,1748603454408,-2802.92,0.00021917,2]
[363155545,1748603454417,-1779.49,0.00021917,2]
[363155547,1748603454427,-489.32,0.00021917,2]
[363155549,1748603454436,-1011.73,0.00021917,2]
[363155551,1748603454449,-420.0,0.00021917,2]
[363155553,1748603454458,-476.00454792,0.00021917,2]
[363155555,1748603454468,-1692.27,0.00021917,2]
[363155556,1748603454477,-1258.73,0.00021917,2]
[363155557,1748603454488,-1253.48,0.00021917,2]
[363155558,1748603454498,-504.41909689,0.00021917,2]
[363155559,1748603454507,-764.71,0.00021917,2]
[363155560,1748603454522,-1411.86,0.00021917,2]
[363155561,1748603454532,-620.28,0.00021917,2]
[363155562,1748603454542,-2866.06,0.00021917,2]
[363155563,1748603454551,-500.0,0.00021917,2]
[363155564,1748603454561,-663.93,0.00021917,2]
[363155566,1748603454571,-422.55792643,0.00021917,2]
[363155568,1748603454580,-420.0,0.00021917,2]
[363155570,1748603454590,-733.24,0.00021917,2]
[363155572,1748603454600,-420.0,0.00021917,2]
[363155574,1748603454610,-420.0,0.00021917,2]
[363155576,1748603454620,-568.2,0.00021917,2]
[363155578,1748603454630,-3163.79,0.00021917,2]
[363155580,1748603454641,-10971.78,0.00021917,2]
[363155582,1748603454651,-519.95,0.00021917,2]
[363155584,1748603454661,-4114.97,0.00021917,2]
[363155586,1748603454671,-420.0,0.00021917,2]
[363155589,1748603454681,-420.0,0.00021917,2]
[363155591,1748603454691,-8829.96,0.00021917,2]
[363155593,1748603454701,-162.98277415,0.00021917,2]
[363155595,1748603454711,-420.0,0.00021917,2]
[363155597,1748603454722,-4517.93,0.00021917,2]
[363155599,1748603454731,-224.72883578,0.00021917,2]
[363155601,1748603454741,-420.0,0.00021917,2]
[363155603,1748603454751,-165.81959145,0.00021917,2]
[363155605,1748603454761,-626.31,0.00021917,2]
[363155607,1748603454771,-823.25,0.00021917,2]
[363155609,1748603454781,-4890.94,0.00021917,2]
[363155611,1748603454790,-420.0,0.00021917,2]
[363155613,1748603454799,-435.29,0.00021917,2]
[363155615,1748603454810,-11485.78,0.00021917,2]
[363155618,1748603454820,-2838.25,0.00021917,2]
[363155620,1748603454831,-489.95,0.00021917,2]
[363155622,1748603454840,-420.0,0.00021917,2]
[363155624,1748603454851,-1391.81,0.00021917,2]
[363155626,1748603454862,-734.45,0.00021917,2]
[363155628,1748603454872,-420.0,0.00021917,2]
[363155630,1748603454882,-1045.21,0.00021917,2]
[363155632,1748603454891,-1090.79,0.00021917,2]
[363155634,1748603454901,-420.0,0.00021917,2]
[363155636,1748603454913,-5337.95,0.00021917,2]
[363155638,1748603454923,-703.21,0.00021917,2]
[363155640,1748603454933,-420.0,0.00021917,2]
[363155642,1748603454943,-1089.93,0.00021917,2]
[363155644,1748603454952,-649.51,0.00021917,2]
[363155646,1748603454962,-2400.73,0.00021917,2]
[363155648,1748603454972,-420.0,0.00021917,2]
[363155650,1748603454983,-626.43,0.00021917,2]
[363155653,1748603454993,-420.0,0.00021917,2]
[363155655,1748603455004,-697.76,0.00021917,2]
[363155657,1748603455013,-420.0,0.00021917,2]
[363155659,1748603455024,-420.0,0.00021917,2]
[363155661,1748603455033,-7565.83,0.00021917,2]
[363155663,1748603455043,-420.0,0.00021917,2]
[363155665,1748603455054,-2522.27,0.00021917,2]
[363155667,1748603455063,-6476.67,0.00021917,2]
[363155669,1748603455073,-420.0,0.00021917,2]
[363155671,1748603455083,-1473.39,0.00021917,2]
[363155673,1748603455093,-1048.22,0.00021917,2]
[363155675,1748603455104,-420.0,0.00021917,2]
[363155677,1748603455114,-1617.4,0.00021917,2]
[363155679,1748603455125,-420.0,0.00021917,2]
[363155681,1748603455135,-2721.31,0.00021917,2]
[363155683,1748603455145,-151.0,0.00021917,2]
[363155686,1748603455155,-942.64,0.00021917,2]
[363155688,1748603455165,-168.192605,0.00021917,2]
[363155690,1748603455175,-3899.58,0.00021917,2]
[363155692,1748603455184,-1469.12,0.00021917,2]
[363155694,1748603455195,-160.0,0.00021917,2]
[363155696,1748603455205,-420.0,0.00021917,2]
[363155698,1748603455215,-420.0,0.00021917,2]
[363155700,1748603455225,-1947.01,0.00021917,2]
[363155702,1748603455235,-929.86,0.00021917,2]
[363155704,1748603455245,-505.68514956,0.00021917,2]
[363155706,1748603455257,-563.44,0.00021917,2]
[363155708,1748603455267,-500.0,0.00021917,2]
[363155710,1748603455277,-420.0,0.00021917,2]
[363155712,1748603455288,-420.0,0.00021917,2]
[363155714,1748603455298,-914.51,0.00021917,2]
[363155716,1748603455308,-420.0,0.00021917,2]
[363155719,1748603455318,-467.68,0.00021917,2]
[363155721,1748603455329,-1172.95,0.00021917,2]
[363155723,1748603455339,-592.03,0.00021917,2]
[363155725,1748603455349,-420.0,0.00021917,2]
[363155727,1748603455359,-1068.51,0.00021917,2]
[363155729,1748603455370,-1540.53,0.00021917,2]
[363155731,1748603455380,-1040.0,0.00021917,2]
[363155733,1748603455390,-2445.05,0.00021917,2]
[363155735,1748603455401,-420.0,0.00021917,2]
[363155737,1748603455411,-420.0,0.00021917,2]
[363155739,1748603455422,-881.91,0.00021917,2]
[363155741,1748603455432,-420.0,0.00021917,2]
[363155743,1748603455442,-420.0,0.00021917,2]
[363155745,1748603455457,-435.73,0.00021917,2]
[363155748,1748603455467,-1567.41,0.00021917,2]
[363155750,1748603455476,-488.51,0.00021917,2]
[363155752,1748603455487,-915.9,0.00021917,2]
[363155754,1748603455497,-422.91357896,0.00021917,2]
[363155756,1748603455507,-420.0,0.00021917,2]
[363155758,1748603455517,-420.0,0.00021917,2]
[363155760,1748603455528,-420.0,0.00021917,2]
[363155762,1748603455538,-3186.92,0.00021917,2]
[363155764,1748603455547,-1090.26,0.00021917,2]
[363155766,1748603455558,-420.0,0.00021917,2]
[363155768,1748603455567,-783.79,0.00021917,2]
[363155770,1748603455577,-420.0,0.00021917,2]
[363155772,1748603455587,-420.0,0.00021917,2]
[363155774,1748603455597,-151.0,0.00021918,7]
[363155776,1748603455607,-151.0,0.00021918,7]
[363155779,1748603455618,-151.0,0.00021918,7]
[363155781,1748603455627,-378.178813,0.00021918,7]
[363155783,1748603455637,-378.178813,0.00021918,7]
[363155785,1748603455647,-945.206834,0.00021918,7]
[363155787,1748603455657,-151.0,0.00021918,7]
[363155789,1748603455668,-151.0,0.00021918,7]
[363155791,1748603455677,-151.0,0.00021918,7]
[363155793,1748603455686,-151.0,0.00021918,7]
[363155795,1748603455697,-240.239424,0.00021918,7]
[363155797,1748603455706,-4257.016718,0.00021918,7]
[363155799,1748603455716,-4257.016718,0.00021918,7]
[363155801,1748603455727,-151.0,0.00021918,7]
[363155803,1748603455736,-201.739981,0.00021918,7]
[363155805,1748603455746,-201.739981,0.00021918,7]
[363155807,1748603455756,-151.0,0.00021918,7]
[363155809,1748603455766,-500.0,0.00021918,2]
[363155811,1748603455776,-500.0,0.00021918,2]
[363155813,1748603455786,-564.35189696,0.00021918,2]
[363155815,1748603455795,-500.0,0.00021918,2]
[363155817,1748603455805,-500.0,0.00021918,2]
[363155819,1748603455815,-500.0,0.00021918,2]
[363155821,1748603455826,-500.0,0.00021918,2]
[363155823,1748603455835,-500.0,0.00021918,2]
[363155825,1748603455846,-500.0,0.00021918,2]
[363155828,1748603455856,-500.0,0.00021918,2]
[363155830,1748603455866,-500.0,0.00021918,2]
[363155832,1748603455875,-500.0,0.00021918,2]
[363155834,1748603455885,-500.0,0.00021918,2]
[363155836,1748603455895,-500.0,0.00021918,2]
[363155838,1748603455905,-500.0,0.00021918,2]
[363155840,1748603455915,-500.0,0.00021918,2]
[363155842,1748603455925,-500.0,0.00021918,2]
[363155844,1748603455935,-500.0,0.00021918,2]
[363155846,1748603455945,-500.0,0.00021918,2]
[363155849,1748603455955,-500.0,0.00021918,2]
[363155851,1748603455965,-500.0,0.00021918,2]
[363155853,1748603455975,-500.0,0.00021918,2]
[363155855,1748603455985,-500.0,0.00021918,2]
[363155857,1748603455995,-500.0,0.00021918,2]
[363155859,1748603456005,-350.0,0.00021918,2]
[363155861,1748603456015,-500.0,0.00021918,2]
[363155863,1748603456026,-500.0,0.00021918,2]
[363155865,1748603456036,-500.0,0.00021918,2]
[363155867,1748603456047,-500.0,0.00021918,2]
[363155869,1748603456057,-500.0,0.00021918,2]
[363155871,1748603456066,-500.0,0.00021918,2]
[363155874,1748603456076,-500.0,0.00021918,2]
[363155876,1748603456086,-500.0,0.00021918,2]
[363155878,1748603456097,-1000.0,0.00021927,2]
[363155880,1748603456107,-1000.0,0.00021927,2]
[363155882,1748603456116,-1000.0,0.00021927,2]
[363155884,1748603456126,-1000.0,0.00021927,2]
[363155886,1748603456136,-1000.0,0.00021927,2]
[363155888,1748603456146,-1000.0,0.00021927,7]
[363155890,1748603456156,-1000.0,0.00021927,7]
[363155892,1748603456166,-1000.0,0.00021927,7]
[363155894,1748603456175,-1000.0,0.00021927,7]
[363155896,1748603456186,-1000.0,0.00021927,7]
[363155898,1748603456195,-500.0,0.00021973,2]
[363155900,1748603456206,-532.03377022,0.00021973,2]
[363155902,1748603456215,-546.95711903,0.00021973,2]
[363155904,1748603456225,-159.57199504,0.00021973,2]
[363155906,1748603456235,-500.0,0.00021973,2]
[363155909,1748603456246,-500.0,0.00021973,2]
[363155911,1748603456257,-500.0,0.00021973,2]
[363155913,1748603456267,-500.0,0.00021973,2]
[363155915,1748603456277,-359.05901085,0.00021973,2]
[363155917,1748603456287,-500.0,0.00021973,2]
[363155919,1748603456297,-500.0,0.00021973,2]
[363155921,1748603456307,-500.0,0.00021973,2]
[363155923,1748603456317,-503.59646341,0.00021973,2]
[363155925,1748603456327,-500.0,0.00021973,2]
[363155926,1748603456337,-215.0738,0.00021994,2]
[363155927,1748603456347,-156.587,0.00021994,2]
[363155928,1748603456356,-249.999999,0.00022,2]
[363155929,1748603456366,-293.174764,0.00022,7]
[363155930,1748603456376,-293.174764,0.00022,7]
[363155931,1748603456387,-170.355757,0.00022,7]
[363155932,1748603456397,-170.355757,0.00022,7]
[363155933,1748603456407,-952.0,0.00022,2]
[363155934,1748603456416,-181.0,0.00022,2]
[363155936,1748603456426,-166.0,0.00022,2]
[363155938,1748603456436,-4000.0,0.00022,4]
[363155940,1748603456452,-989.27223219,0.00022014,2]
[363155942,1748603456463,-163.04,0.00022027,2]
[363155944,1748603456474,-1026.984215,0.0002205,7]
[363155946,1748603456485,-1026.984215,0.0002205,2]
[363155949,1748603456495,-1026.984215,0.0002205,7]
[363155951,1748603456505,-1026.984215,0.0002205,2]
[363155953,1748603456515,-1026.984215,0.0002205,7]
[363155955,1748603456525,-1026.984215,0.0002205,2]
[363155957,1748603456535,-1026.984215,0.0002205,7]
[363155959,1748603456545,-1026.984215,0.0002205,2]
[363155961,1748603456555,-1026.984215,0.0002205,7]
[363155963,1748603456565,-1026.984215,0.0002205,2]
[363155965,1748603456575,-151.0,0.0002206,7]
[363155967,1748603456585,-151.0,0.0002206,7]
[363155969,1748603456595,-151.0,0.0002206,7]
[363155971,1748603456606,-151.0,0.0002206,7]
[363155973,1748603456616,-151.0,0.0002206,7]
[363155975,1748603456626,-151.0,0.0002206,7]
[363155977,1748603456635,-151.0,0.0002206,7]
[363155980,1748603456645,-19856.29248478,0.00022064,2]
[363155982,1748603456656,-150.0,0.00022065,2]
[363155984,1748603456666,-150.0,0.00022065,2]
[363155986,1748603456675,-4092.41407638,0.00022072,6]
[363155988,1748603456685,-8263.48252436,0.00022073,2]
[363155990,1748603456695,-12449.37555073,0.00022091,2]
[363155992,1748603456706,-292.45247078,0.00022092,2]
[363155994,1748603456716,-151.0,0.00022099,7]
[363155996,1748603456726,-153.337601,0.00022099,7]
[363155998,1748603456737,-151.0,0.00022099,7]
[363156000,1748603456747,-151.0,0.00022099,7]
[363156003,1748603456757,-151.0,0.00022099,7]
[363156005,1748603456768,-151.0,0.00022099,7]
[363156032,1748603457026,-151.0,0.00022099,7]
[363156034,1748603457037,-151.0,0.00022099,7]
[363156036,1748603457047,-151.0,0.00022099,7]
[363156038,1748603457057,-151.0,0.00022099,7]
[363156040,1748603457067,-151.0,0.00022099,7]
[363156042,1748603457077,-151.0,0.00022099,7]
[363156045,1748603457087,-151.0,0.00022099,7]
[363156047,1748603457098,-151.0,0.00022099,7]
[363156049,1748603457108,-151.0,0.00022099,7]
[363156051,1748603457118,-151.0,0.00022099,7]
[363156053,1748603457128,-151.0,0.00022099,7]
[363156055,1748603457138,-154.101445,0.00022099,7]
[363156057,1748603457148,-151.0,0.00022099,7]
[363156059,1748603457158,-267.707776,0.00022099,7]
[363156061,1748603457169,-151.0,0.00022099,7]
[363156063,1748603457179,-151.0,0.00022099,7]
[363156065,1748603457189,-151.0,0.00022099,7]
[363156067,1748603457198,-151.0,0.00022099,7]
[363156069,1748603457208,-293.174764,0.00022099,7]
[363156071,1748603457218,-293.174764,0.00022099,7]
[363156073,1748603457227,-151.0,0.00022099,7]
[363156075,1748603457236,-170.355757,0.00022099,7]
[363156077,1748603457246,-170.355757,0.00022099,7]
[363156079,1748603457255,-661.345713,0.00022099,7]
[363156081,1748603457264,-661.345713,0.00022099,7]
[363156083,1748603457274,-151.0,0.00022099,7]
[363156085,1748603457283,-211.22843,0.00022099,7]
[363156087,1748603457292,-211.22843,0.00022099,7]
[363156089,1748603457302,-320.205292,0.00022099,7]
[363156091,1748603457311,-320.205292,0.00022099,7]
[363156093,1748603457320,-217.565645,0.00022099,7]
[363156095,1748603457329,-217.565645,0.00022099,7]
[363156097,1748603457338,-165.686068,0.00022099,7]
[363156099,1748603457348,-165.686068,0.00022099,7]
[363156101,1748603457357,-151.0,0.00022099,7]
[363156103,1748603457367,-151.0,0.00022099,7]
[363156105,1748603457376,-99363.21191858,0.00022099,2]
[363156107,1748603457385,-200.0,0.000221,2]
[363156109,1748603457395,-151.0,0.000221,7]
[363156111,1748603457404,-151.0,0.000221,7]